[Event "1st Serbian League 2022"]
[Site "Vrnjacka Banja"]
[Date "2022.09.20"]
[Round "1.30"]
[White "Zlatanovic, Boroljub"]
[Black "Dimic, Pavle"]
[Result "1-0"]
[ECO "A26"]
[WhiteElo "2313"]
[BlackElo "2352"]
[Annotator "ChessBase"]
[PlyCount "103"]
[EventDate "2022.09.20"]
[EventType "team-tourn"]
[EventCountry "SRB"]
[SourceTitle "playchess.com"]
[Source "ChessBase"]
[SourceQuality "1"]
[TimeControl "40/5400+30:1800+30"]

1. c4 {[%emt 0:00:06]} g6 {[%emt 0:00:11]} 2. g3 {[%emt 0:00:29]} Bg7 {[%emt 0:00:08]} 3. Bg2 {[%emt 0:00:26]} Nf6 {[%emt 0:00:17]} 4. Nf3 {[%emt 0:00:55]} O-O {[%emt 0:00:16]} 5. O-O {[%emt 0:00:07]} d6 {[%emt 0:00:10]} 6. Nc3 {[%emt 0:00:37]} Nc6 {[%emt 0:01:30]} 7. d3 {[%emt 0:01:22]} h6 {[%emt 0:00:25]} 8. Rb1 {[%emt 0:02:08]} a5 {[%emt 0:00:06]} 9. a3 {[%emt 0:00:15]} e5 {[%emt 0:00:06]} 10. Ne1 {[%emt 0:02:48]} Be6 {[%emt 0:05:19]} 11. Nd5 {[%emt 0:02:12]} Nh7 {[%emt 0:13:53]} 12. b4 {[%emt 0:05:50]} axb4 {[%emt 0:02:10]} 13. axb4 {[%emt 0:00:30]} Rb8 {[%emt 0:11:28]} 14. b5 {[%emt 0:02:46]} Ne7 {[%emt 0:08:59]} 15. Nc2 {[%emt 0:03:28]} f5 {[%emt 0:02:27]} 16. f4 {[%emt 0:09:00]} Nf6 {[%emt 0:05:35]} 17. Nxf6+ {[%emt 0:05:26]} Rxf6 {[%emt 0:00:11]} 18. Bb2 {[%emt 0:00:20]} Rf7 {[%emt 0:02:04]} 19. Qd2 {[%emt 0:02:02]} Qd7 {[%emt 0:06:17]} 20. Bc3 {[%emt 0:06:50]} Rff8 {[%emt 0:25:50]} 21. d4 {[%emt 0:14:34]} Bxc4 {[%emt 0:05:58]} 22. dxe5 {[%emt 0:00:24]} Rfd8 {[%emt 0:02:28]} 23. Ne3 {[%emt 0:10:54]} Be6 {[%emt 0:00:20]} 24. exd6 {[%emt 0:05:00]} Qxd6 {[%emt 0:00:17]} 25. Qxd6 {[%emt 0:03:20]} Rxd6 {[%emt 0:00:31]} 26. Rfc1 {[%emt 0:01:44]} Rd7 {[%emt 0:01:44]} 27. Kf2 {[%emt 0:02:40]} Nc8 {[%emt 0:01:19]} 28. Bxg7 {[%emt 0:03:40]} Kxg7 {[%emt 0:00:02]} 29. Bc6 {[%emt 0:02:56]} Re7 {[%emt 0:00:19]} 30. Bd5 {[%emt 0:00:27]} Kf6 {[%emt 0:03:31]} 31. Rc5 {[%emt 0:05:31]} Nd6 {[%emt 0:00:31]} 32. Rbc1 {[%emt 0:01:02]} Rc8 {[%emt 0:01:32]} 33. Kf3 {[%emt 0:02:58]} b6 {[%emt 0:00:24]} 34. Bxe6 {[%emt 0:00:51]} Kxe6 {[%emt 0:00:20]} 35. Rc6 {[%emt 0:00:54]} Rce8 {[%emt 0:00:18]} 36. Nc4 {[%emt 0:01:31]} Rd8 {[%emt 0:00:56]} 37. Ne5 {[%emt 0:01:11]} g5 {[%emt 0:00:16]} 38. h3 {[%emt 0:00:48]} Kd5 {[%emt 0:00:47]} 39. Rd1+ {[%emt 0:00:48]} Ke6 {[%emt 0:00:03]} 40. Nc4 {[%emt 0:00:45]} Red7 {[%emt 0:00:14]} 41. Nxd6 {[%emt 0:03:09]} Rxd6 {[%emt 0:08:33]} 42. Rdxd6+ {[%emt 0:01:05]} cxd6 {[%emt 0:01:52]} 43. Rxb6 {[%emt 0:00:17]} Kd5 {[%emt 0:00:02]} 44. Rb7 {[%emt 0:00:40]} Rc8 {[%emt 0:00:27]} 45. b6 {[%emt 0:03:53]} Rc3+ {[%emt 0:01:00]} 46. e3 {[%emt 0:01:06]} g4+ {[%emt 0:03:23]} 47. hxg4 {[%emt 0:00:06]} fxg4+ {[%emt 0:00:06]} 48. Kxg4 {[%emt 0:00:06]} Rxe3 {[%emt 0:00:06]} 49. Rh7 {[%emt 0:01:33]} Rb3 {[%emt 0:00:24]} 50. b7 {[%emt 0:01:17]} Kc6 {[%emt 0:03:18]} 51. f5 {[%emt 0:01:09]} Kd5 {[%emt 0:00:40]} 52. Re7 {[%emt 0:00:56]} 1-0

[Event "1st Serbian League 2022"]
[Site "Vrnjacka Banja"]
[Date "2022.09.20"]
[Round "1.31"]
[White "Risteski, Emil"]
[Black "Demchenko, Anton"]
[Result "1/2-1/2"]
[ECO "C55"]
[WhiteElo "2364"]
[BlackElo "2645"]
[Annotator "TA"]
[PlyCount "92"]
[EventDate "2022.09.20"]
[EventType "team-tourn"]
[EventCountry "SRB"]
[SourceTitle "playchess.com"]
[Source "ChessBase"]
[SourceQuality "1"]
[TimeControl "40/5400+30:1800+30"]

{[%evp 10,92,45,34,46,19,20,25,31,0,25,24,25,18,39,11,16,0,36,33,37,48,52,42,55,50,68,77,91,65,64,71,50,0,56,45,62,91,81,34,40,13,24,27,20,0,12,-2,-14,-25,-29,-27,16,7,7,12,39,15,31,29,188,0,0,16,316,315,271,0,0,0,0,-237,0,0,0,0,0,0,0,0,0,0,0,0,0]} 1. e4 {[%emt 0:00:16]} e5 {[%emt 0:00:10]} 2. Nf3 {[%emt 0:00:06]} Nc6 {[%emt 0:00:03]} 3. Bc4 {[%emt 0:00:15]} Nf6 {[%emt 0:00:14]} 4. d3 {[%emt 0:00:55]} Be7 {[%emt 0:00:56]} 5. O-O {[%emt 0:00:15]} O-O {[%emt 0:00:11]} 6. a4 {[%emt 0:00:20][%cal Ba2a4,Ba4a5][%mdl 32] CPLX 2.2 11 (Rf1-e1) (=11)} d6 {[%emt 0:07:20] CPLX 2.2 12 (a7-a5) (=12). C55: Two Knights: 4 d3, 4 d4 exd4 5 e5 and Max Lange Attack.} 7. a5 {[%emt 0:04:34] CPLX 2.3 27 (Rf1-e1) (=19)} a6 {[%emt 0:01:42] BESTDEEP} 8. h3 {[%emt 0:01:38] CPLX 2.4 0 (Rf1-e1) (=13)} Be6 {[%emt 0:00:32] CPLX 2.5 6 (h7-h6) (=6). White has an edge.} 9. Nbd2 {[%emt 0:06:36] CPLX 2.4 31 (Rf1-e1) (=17)} Qd7 {[%emt 0:01:08] CPLX 2.3 25 (d6-d5) (=11)} 10. Re1 {[%emt 0:05:15] CPLX 2.3 1 (c2-c3) (=14)} h6 {[%emt 0:01:45] CPLX 2.3 1 (Rf8-e8) (=9)} 11. c3 {[%emt 0:04:28] CPLX 2.4} Rae8 {[%emt 0:08:09] [#] CPLX 2.4 21 (Ra8-b8) (=11)} 12. Qb3 $146 {[%emt 0:08:28] CPLX 2.4 28 (Bc4xe6) (=14)} ({Predecessor:} 12. Bxe6 fxe6 13. d4 exd4 14. cxd4 Nh7 15. Qb3 Ng5 16. Qxb7 Nxf3+ 17. Nxf3 Rxf3 18. gxf3 Nxd4 {½-½ (59) Shvedova,A (2065)-Tanenbaum,Z (2146) Chess.com INT 2021}) 12... Nd8 {[%emt 0:12:17] BESTDEEP} 13. Nf1 {[%emt 0:09:19] CPLX 2.4 16 (Bc4xe6) (=14)} c6 {[%emt 0:13:53] CPLX 2.5 36 (c7-c5) (=13)} 14. Bxe6 {[%emt 0:02:28] BESTDEEP} fxe6 {[%emt 0:01:25] RECAPT} 15. Ng3 {[%emt 0:00:41] CPLX 2.2 0 (d3-d4) (=11)} Nh7 {[%emt 0:02:12] BESTDEEP} 16. d4 {[%emt 0:03:07] BESTDEEP} exd4 {[%emt 0:00:52] DEEPSTRONG} 17. cxd4 {[%emt 0:00:20] RECAPT} Nf7 {[%emt 0:00:21][%cal Bd8f7,Bf7h8,Bh8g6,Bg6h4][%mdl 32] CPLX 2.6 18 (Nh7-g5) (=10)} 18. Be3 {[%emt 0:01:36] CPLX 2.3} Bd8 {[%emt 0:07:07] CPLX 2.4 14 (Re8-c8) (=10)} 19. Nd2 {[%emt 0:01:22] CPLX 2.4 26 (e4-e5) (=10)} d5 {[%emt 0:01:12] BESTDEEP} 20. e5 {[%emt 0:03:55] BESTDEEP} c5 {[%emt 0:05:47] BESTDEEP} 21. f4 {[%emt 0:01:51] CPLX 2.5 50 (Ng3-e2) (=12)} (21. Ne2 $14) 21... cxd4 {[%emt 0:09:53] MISS-Bd8-h4 56 (Bd8-h4) (=12)} (21... Bh4 $11 22. Kh2 Bxg3+ 23. Kxg3 cxd4 24. Bxd4 Nd8) 22. Bxd4 $14 {[%emt 0:00:29] RECAPT} Nh8 {[%emt 0:00:16] CPLX 2.4 17 (Bd8-e7) (=12)} 23. Rf1 {[%emt 0:03:06] White has more active pieces. CPLX 2.4} Ng6 {[%emt 0:01:18] CPLX 2.4} 24. Qe3 {[%emt 0:03:53] CPLX 2.5 47 (Ng3-e2) (=12)} (24. Ne2 $16) 24... Qb5 {[%emt 0:02:07] BESTDEEP} 25. Bc3 {[%emt 0:06:18] CPLX 2.9 27 (b2-b4) (=13)} Be7 {[%emt 0:04:06] DEEPSTRONG} 26. Ne2 {[%emt 0:02:41] BESTDEEP} Nh4 {[%emt 0:01:46] DEEPSTRONG} 27. Nd4 {[%emt 0:06:53] CPLX 3.0 20 (Nd2-f3) (=13)} Bc5 {[%emt 0:00:38] CPLX 3.7 12 (Nh4-f5) (=10)} 28. g4 {[%emt 0:00:40] CPLX 4.7 14 (Qe3-f2) (=13)} g5 {[%emt 0:00:40] EASY} 29. fxg5 {[%emt 0:05:18] Chess con chili. BESTDEEP} Nxg5 {[%emt 0:00:51] RECAPT} 30. Kh2 {[%emt 0:00:07] CPLX 5.6} Qd7 {[%emt 0:05:51] CPLX 5.5 43 (Nh4-g6) (=10)} 31. Qg3 $1 {[%emt 0:04:09] CPLX 5.1} Ng6 {[%emt 0:00:36] CPLX 4.5} 32. h4 $1 {[%emt 0:01:25] CPLX 4.1} Ne4 {[%emt 0:00:34] CPLX 4.5 27 (Rf8xf1) (=11)} 33. Nxe4 {[%emt 0:00:10] EASY} dxe4 {[%emt 0:00:02] RECAPT} 34. Nf5 {[%emt 0:01:42][%cal Oh4h5] And now h5! would win. BESTDEEP} Kh7 $2 {[%emt 0:06:02] [#] RELBLUND 159 (Qd7-d3) (=15)} (34... exf5 $2 35. gxf5 Qg7 36. e6 $18 (36. Qxg6 Qxg6 37. fxg6 Bf2 $11)) (34... Qd3 $11 {and Black stays safe.} 35. Qg2 (35. Nxh6+ Kg7 $15) 35... e3) 35. Nd6 $2 {[%emt 0:03:44] RELBLUND 188 (h4-h5) (=16)} (35. h5 $1 $18 Nh8 36. Nd6 Bxd6 37. exd6) 35... Bxd6 $11 {[%emt 0:02:43] DEEPSTRONG=>BLUNDERREACT} 36. exd6 {[%emt 0:00:06][%cal Be5d6,Bd6d7][%mdl 32] h5 is the strong threat. RECAPT} Qb5 {[%emt 0:00:58][%mdl 8192] [#] RELBLUND 300 (e6-e5) (=24)} (36... e5 $11 {and Black has nothing to worry.}) 37. d7 $1 $18 {[%emt 0:03:59] DEEPSTRONG=>BLUNDERREACT} Rd8 {[%emt 0:00:41] BESTDEEP} 38. h5 $2 {[%emt 0:02:16] MISS-Rf1xf8 271 (Rf1xf8) (=23)} Rxf1 $11 {[%emt 0:00:49] EASY} 39. hxg6+ {[%emt 0:00:05] CPLX 6.7 0 (Ra1xf1) (=22)} Kxg6 {[%emt 0:01:19] RECAPT} 40. Qe3 $2 {[%emt 0:05:08] RELBLUND 237 (Ra1xf1) (=28)} (40. Rxf1 $11 {and White is okay.} Qxf1 41. Qe5 Qe2+ 42. Kh3 Qf3+ 43. Kh4 Qh1+ 44. Kg3 Qg1+ 45. Kh4 Qf2+ 46. Kh3 Qf3+ 47. Kh4 Qh1+ 48. Kg3 Qg1+ 49. Kh4 Qf2+ 50. Kh3 Qf3+) 40... Rxa1 $2 {[%emt 0:01:00] CPLX 7.4 237 (Rd8xd7) (=28)} (40... Rxd7 $19 41. Qxe4+ Kf7 42. Rxf1+ Qxf1 43. Qh7+ Ke8 44. Qg8+ Qf8 45. Qxe6+ Kd8) 41. Qxe4+ {[%emt 0:30:08] EASY. The position is equal.} Kg5 {[%emt 0:30:09] EASY} 42. Qe3+ {[%emt 0:00:00] CPLX 6.9} Kxg4 {[%emt 0:00:00] EASY} 43. Qg3+ {[%emt 0:00:00] CPLX 7.3 0 (Qe3-e4) (=26)} Kh5 {[%emt 0:00:00] ( -> ...Qe2+). EASY} 44. Qf3+ {[%emt 0:00:00] EASY} Kg5 {[%emt 0:00:00] CPLX 6.7 0 (Kh5-g6) (=25)} 45. Qg3+ {[%emt 0:00:00] BESTDEEP} Kf5 {[%emt 0:00:00] Hoping for ...Qe2+. MISS-Kg5-h5 0 (Kg5-h5) (=25)} 46. Qf3+ {[%emt 0:00:00] EASY} Kg5 {[%emt 0:00:00] Weighted Error Value: White=0.27 (precise) /Black=0.39} 1/2-1/2

[Event "1st Serbian League 2022"]
[Site "Vrnjacka Banja"]
[Date "2022.09.20"]
[Round "1.32"]
[White "Basso, Pier Luigi"]
[Black "Djokic, Mihailo"]
[Result "1-0"]
[ECO "E32"]
[WhiteElo "2528"]
[BlackElo "2197"]
[Annotator "TA"]
[PlyCount "53"]
[EventDate "2022.09.20"]
[EventType "team-tourn"]
[EventCountry "SRB"]
[SourceTitle "playchess.com"]
[Source "ChessBase"]
[SourceQuality "1"]
[TimeControl "40/5400+30:1800+30"]

{[%evp 21,53,97,93,60,233,229,217,236,244,241,237,235,241,228,583,544,1424,1424,29986,29987,29987,29988,29988,29989,29990,29991,29991,29992,29993,29990,29995,29996,29996,29997]} 1. d4 {[%emt 0:00:05]} Nf6 {[%emt 0:00:17]} 2. c4 {[%emt 0:00:09]} b6 {[%emt 0:00:55]} 3. Nc3 {[%emt 0:00:07]} Bb7 {[%emt 0:00:05]} 4. Qc2 {[%emt 0:00:09]} e6 {[%emt 0:04:03]} 5. e4 {[%emt 0:00:22]} Bb4 {[%emt 0:05:15]} 6. Bd3 {[%emt 0:00:32]} d5 {[%emt 0:04:57]} 7. cxd5 {[%emt 0:03:07]} exd5 {[%emt 0:04:17]} 8. e5 {[%emt 0:05:17]} Ne4 {[%emt 0:01:19]} 9. Nf3 {[%emt 0:00:58]} c5 {[%emt 0:05:23]} 10. O-O {[%emt 0:00:58]} Bxc3 {[%emt 0:03:59]} 11. bxc3 {[%emt 0:00:04]} O-O {[%emt 0:05:04] DEEPSTRONG} 12. dxc5 {[%emt 0:06:17] Black must now prevent Ba3. CPLX 2.8 33 (Nf3-d2) (=33). E32: Nimzo-Indian: Classical (4 Qc2): 4...0-0.} bxc5 $2 {[%emt 0:01:27] [#] RELBLUND 173 (Nb8-d7) (=87)} (12... Nd7 $14) 13. Rb1 $18 {[%emt 0:02:14] EASY} c4 {[%emt 0:10:00] CPLX 3.1 0 (Bb7-a6) (=58)} 14. Bxe4 {[%emt 0:05:55] CPLX 3.3. White is clearly better.} ({Stronger than} 14. Rxb7 cxd3 15. Qxd3 Nc5 $11) 14... dxe4 {[%emt 0:00:40] RECAPT} 15. Rxb7 {[%emt 0:00:14] EASY} exf3 {[%emt 0:00:06] [#] BESTDEEP} 16. Rd1 {[%emt 0:07:36] Prevents Qd5. CPLX 3.9} ({But not} 16. gxf3 $6 Qc8 17. Qe4 Nc6 $16) 16... Qc8 {[%emt 0:06:10] ( -> ...Qg4). CPLX 4.3 6 (Qd8-h4) (=30)} 17. Qe4 {[%emt 0:00:08] [#] Inhibits Qg4. EASY} fxg2 $146 {[%emt 0:01:45] CPLX 4.3 355 (Nb8-a6) (=76)} (17... Na6 {is tougher.} 18. Qxf3 Nc5) ({Predecessor:} 17... Nc6 18. Rbd7 Re8 19. Bf4 fxg2 20. R1d6 Nd8 21. Qf5 Rf8 22. Bh6 Ne6 23. Qg4 Kh8 24. Rxe6 gxh6 25. Rxh6 Rg8 26. Rxh7+ {1-0 (26) Schlecht,D (2349)-Orlov,A (2503) Germany 2015}) 18. Rd6 {[%emt 0:03:20] e6 is the strong threat. CPLX 5.3 39 (Bc1-a3) (=10)} a5 {[%emt 0:02:29] BEVAL 400 (Nb8-c6) (=117)} 19. e6 {[%emt 0:03:16] BEVAL} Na6 {[%emt 0:04:22] MISSDEEP-f7xe6 400 (f7xe6) (=148)} 20. exf7+ {[%emt 0:00:39] DEEPSTRONG. White mates.} Rxf7 {[%emt 0:01:08] RECAPT} 21. Rxf7 {[%emt 0:00:19] RECAPT} Kxf7 {[%emt 0:00:09] RECAPT} 22. Qd5+ {[%emt 0:00:32] DEEPSTRONG} Kf8 {[%emt 0:19:51] RELBLUND 1 (Kf7-e8) (=111)} 23. Ba3 {[%emt 0:01:01][%csl Gd5][%cal Rd6d8] DEEPSTRONG} Nb4 {[%emt 0:03:12] RELBLUND} 24. cxb4 {[%emt 0:00:09] DEEPSTRONG} Qe8 {[%emt 0:00:54] RELBLUND 1 (Ra8-a7) (=95)} 25. Re6 {[%emt 0:01:00] CPLX 5.8 3 (b4-b5) (=5)} Qc8 {[%emt 0:03:44] RELBLUND 5 (Qe8xe6) (=89)} 26. b5+ {[%emt 0:00:12] CPLX 5.5} Kf7 {[%emt 0:02:24] EASY} 27. Rc6+ {[%emt 0:00:28] White took control after the opening.  Weighted Error Value: White=0.07 (flawless) /Black=0.78} 1-0

[Event "1st Serbian League 2022"]
[Site "Vrnjacka Banja"]
[Date "2022.09.20"]
[Round "1.33"]
[White "Jocev, Milan"]
[Black "Atalik, Suat"]
[Result "1-0"]
[ECO "E11"]
[WhiteElo "2283"]
[BlackElo "2436"]
[Annotator "ChessBase"]
[PlyCount "97"]
[EventDate "2022.09.20"]
[EventType "team-tourn"]
[EventCountry "SRB"]
[SourceTitle "playchess.com"]
[Source "ChessBase"]
[SourceQuality "1"]
[TimeControl "40/5400+30:1800+30"]

1. d4 {[%emt 0:00:04]} Nf6 {[%emt 0:00:13]} 2. c4 {[%emt 0:00:12]} e6 {[%emt 0:00:16]} 3. g3 {[%emt 0:00:10]} Bb4+ {[%emt 0:00:59]} 4. Bd2 {[%emt 0:00:08]} a5 {[%emt 0:00:45]} 5. Bg2 {[%emt 0:01:03]} d5 {[%emt 0:01:40]} 6. Nf3 {[%emt 0:01:05]} O-O {[%emt 0:01:33]} 7. O-O {[%emt 0:00:27]} Be7 {[%emt 0:00:59]} 8. Qc2 {[%emt 0:04:34]} c6 {[%emt 0:01:01]} 9. b3 {[%emt 0:02:24]} b5 {[%emt 0:02:31]} 10. c5 {[%emt 0:08:15]} Nbd7 {[%emt 0:01:04]} 11. Nc3 {[%emt 0:05:56]} b4 {[%emt 0:01:51]} 12. Na4 {[%emt 0:00:52]} Ba6 {[%emt 0:03:09]} 13. Rfe1 {[%emt 0:02:30]} Ne4 {[%emt 0:01:35]} 14. Ne5 {[%emt 0:13:47]} Nxe5 {[%emt 0:00:11]} 15. Bxe4 {[%emt 0:00:27]} f5 {[%emt 0:10:33]} 16. Bg2 {[%emt 0:04:13]} Nd7 {[%emt 0:02:02]} 17. a3 {[%emt 0:13:24]} Bf6 {[%emt 0:04:04]} 18. e3 {[%emt 0:01:00]} e5 {[%emt 0:02:18]} 19. Qxf5 {[%emt 0:03:09]} exd4 {[%emt 0:02:05]} 20. e4 {[%emt 0:03:27]} Ne5 {[%emt 0:15:21]} 21. exd5 {[%emt 0:05:04]} Bc8 {[%emt 0:10:21]} 22. Qe4 {[%emt 0:02:00]} Bb7 {[%emt 0:07:02]} 23. d6 {[%emt 0:03:58]} bxa3 {[%emt 0:00:13]} 24. Nb6 {[%emt 0:06:01]} Ra6 {[%emt 0:01:30]} 25. f4 {[%emt 0:02:08]} Nf7 {[%emt 0:03:46]} 26. Nc4 {[%emt 0:04:00]} Bc8 {[%emt 0:00:14]} 27. h3 {[%emt 0:00:50]} Bd7 {[%emt 0:00:22]} 28. Qd3 {[%emt 0:03:38]} Qc8 {[%emt 0:00:30]} 29. g4 {[%emt 0:01:10]} h5 {[%emt 0:00:39]} 30. g5 {[%emt 0:02:14]} Bd8 {[%emt 0:00:06]} 31. h4 {[%emt 0:02:55]} Ra7 {[%emt 0:01:42]} 32. Qxd4 {[%emt 0:00:27]} Bh3 {[%emt 0:00:25]} 33. Bc3 {[%emt 0:03:12]} Nh6 {[%emt 0:00:22]} 34. d7 {[%emt 0:00:44]} Qxd7 {[%emt 0:03:06]} 35. Qxd7 {[%emt 0:00:10]} Bxd7 {[%emt 0:00:18]} 36. gxh6 {[%emt 0:00:08]} gxh6 {[%emt 0:00:12]} 37. Ne5 {[%emt 0:02:07]} Be7 {[%emt 0:00:25]} 38. Nxd7 {[%emt 0:00:51]} Rxd7 {[%emt 0:00:08]} 39. Rxe7 {[%emt 0:00:43]} Rxe7 {[%emt 0:00:07]} 40. Be5 {[%emt 0:00:05]} Rc8 {[%emt 0:03:19]} 41. Rxa3 {[%emt 0:30:32]} Rb7 {[%emt 0:30:06]} 42. Bf1 {[%emt 0:00:00]} Ra8 {[%emt 0:00:00]} 43. Bc4+ {[%emt 0:00:00]} Kh7 {[%emt 0:00:00]} 44. Kf2 {[%emt 0:00:00]} Kg6 {[%emt 0:00:00]} 45. Bd3+ {[%emt 0:00:00]} Kf7 {[%emt 0:00:00]} 46. f5 {[%emt 0:00:00]} Rb4 {[%emt 0:00:00]} 47. Bc4+ {[%emt 0:00:00]} Ke7 {[%emt 0:00:00]} 48. f6+ {[%emt 0:00:00]} Kd7 {[%emt 0:00:00]} 49. Ra4 {[%emt 0:00:00]} 1-0

[Event "1st Serbian League 2022"]
[Site "Vrnjacka Banja"]
[Date "2022.09.20"]
[Round "1.34"]
[White "Milosevic, Milos"]
[Black "Stankovic, Boris"]
[Result "1-0"]
[ECO "E71"]
[WhiteElo "2379"]
[BlackElo "2208"]
[Annotator "ChessBase"]
[PlyCount "59"]
[EventDate "2022.09.20"]
[EventType "team-tourn"]
[EventCountry "SRB"]
[SourceTitle "playchess.com"]
[Source "ChessBase"]
[SourceQuality "1"]
[TimeControl "40/5400+30:1800+30"]

1. d4 {[%emt 0:00:04]} Nf6 {[%emt 0:00:07]} 2. c4 {[%emt 0:00:06]} g6 {[%emt 0:00:08]} 3. Nc3 {[%emt 0:00:04]} Bg7 {[%emt 0:00:06]} 4. e4 {[%emt 0:00:03]} d6 {[%emt 0:00:06]} 5. h3 {[%emt 0:00:02]} O-O {[%emt 0:00:33]} 6. Be3 {[%emt 0:00:04]} Na6 {[%emt 0:05:35]} 7. g4 {[%emt 0:13:05]} c5 {[%emt 0:07:49]} 8. Nge2 {[%emt 0:04:49]} cxd4 {[%emt 0:09:23]} 9. Bxd4 {[%emt 0:00:10]} Qa5 {[%emt 0:11:51]} 10. Ng3 {[%emt 0:10:23]} Be6 {[%emt 0:09:28]} 11. Qd2 {[%emt 0:06:55]} Rfc8 {[%emt 0:12:43]} 12. g5 {[%emt 0:02:53]} Nd7 {[%emt 0:02:59]} 13. Bxg7 {[%emt 0:00:08]} Kxg7 {[%emt 0:00:04]} 14. b3 {[%emt 0:01:03]} Nac5 {[%emt 0:07:02]} 15. Rb1 {[%emt 0:03:08]} Ne5 {[%emt 0:00:41]} 16. Be2 {[%emt 0:01:44]} Qb6 {[%emt 0:06:28]} 17. Kf1 {[%emt 0:03:15]} Nc6 {[%emt 0:03:25]} 18. Kg2 {[%emt 0:01:14]} Nd7 {[%emt 0:03:57]} 19. Rbd1 {[%emt 0:03:56]} Rf8 {[%emt 0:02:52]} 20. Nd5 {[%emt 0:02:27]} Bxd5 {[%emt 0:00:45]} 21. exd5 {[%emt 0:00:32]} Nb4 {[%emt 0:03:40]} 22. h4 {[%emt 0:00:29]} e5 {[%emt 0:04:59]} 23. dxe6 {[%emt 0:16:47]} fxe6 {[%emt 0:00:02]} 24. f4 {[%emt 0:01:31]} d5 {[%emt 0:02:11]} 25. h5 {[%emt 0:05:00]} e5 {[%emt 0:02:36]} 26. hxg6 {[%emt 0:00:05]} hxg6 {[%emt 0:00:53]} 27. Rh6 {[%emt 0:01:01]} Nc5 {[%emt 0:01:59]} 28. f5 {[%emt 0:02:16]} Ne4 {[%emt 0:00:40]} 29. Nxe4 {[%emt 0:03:04]} Rxf5 {[%emt 0:00:02]} 30. Bh5 {[%emt 0:07:49]} 1-0

[Event "1st Serbian League 2022"]
[Site "Vrnjacka Banja"]
[Date "2022.09.20"]
[Round "1.35"]
[White "Radojicic, Aleksandar M"]
[Black "Markovic, Miroslav"]
[Result "1/2-1/2"]
[ECO "D02"]
[WhiteElo "2192"]
[BlackElo "2275"]
[Annotator "TA"]
[PlyCount "49"]
[EventDate "2022.09.20"]
[EventType "team-tourn"]
[EventCountry "SRB"]
[SourceTitle "playchess.com"]
[Source "ChessBase"]
[SourceQuality "1"]
[TimeControl "40/5400+30:1800+30"]

{[%evp 9,49,3,8,16,17,9,16,13,5,0,10,-6,-2,-10,-9,-2,0,0,0,0,0,0,0,0,0,0,31,9,10,0,11,12,4,0,0,0,0,0,14,12,16,16]} 1. d4 {[%emt 0:00:01]} Nf6 {[%emt 0:00:10]} 2. Nc3 {[%emt 0:00:04]} d5 {[%emt 0:01:11]} 3. Bf4 {[%emt 0:00:06]} Bf5 {[%emt 0:03:07]} 4. e3 {[%emt 0:00:19]} e6 {[%emt 0:00:11]} 5. Nf3 {[%emt 0:05:15]} Bd6 {[%emt 0:01:40]} 6. Ne5 {[%emt 0:05:36] D02: 1 d4 d5 2 Nf3 sidelines, including 2...Nf6 3 g3 and 2...Nf6 3 Bf4.} h6 {[%emt 0:05:45]} 7. g4 {[%emt 0:13:17]} Bh7 {[%emt 0:00:11]} 8. h4 {[%emt 0:00:37]} Nfd7 {[%emt 0:00:37] [#]} 9. Bd3 $146 {[%emt 0:27:18]} ({Predecessor:} 9. g5 Bf5 10. gxh6 gxh6 11. Bd3 Bxd3 12. cxd3 Nxe5 13. dxe5 Bf8 14. Qb3 b6 15. d4 {1-0 (49) Boros,D (2430)-Brankovic,D (2300) Chess.com INT 2022}) 9... Bxd3 {[%emt 0:01:51]} 10. Qxd3 {[%emt 0:00:41]} Bxe5 {[%emt 0:01:23]} 11. Bxe5 {[%emt 0:00:10]} Nxe5 {[%emt 0:02:40]} 12. dxe5 {[%emt 0:00:03]} Nc6 {[%emt 0:00:16]} 13. f4 {[%emt 0:02:43]} d4 {[%emt 0:10:03]} 14. exd4 {[%emt 0:10:41]} Qxd4 {[%emt 0:00:31]} 15. Qxd4 {[%emt 0:00:08]} Nxd4 {[%emt 0:00:02]} 16. O-O-O {[%emt 0:00:03]} O-O-O {[%emt 0:00:59]} 17. h5 {[%emt 0:03:46]} Rd7 {[%emt 0:06:10]} 18. Rhf1 {[%emt 0:08:14]} Rhd8 {[%emt 0:13:03] The position is equal.} 19. Rde1 {[%emt 0:05:02]} b5 {[%emt 0:10:36]} 20. Ne4 {[%emt 0:03:21]} Rd5 {[%emt 0:01:10]} 21. c3 {[%emt 0:01:28]} Nc6 {[%emt 0:00:03]} 22. Rd1 {[%emt 0:00:24]} Ne7 {[%emt 0:00:49]} 23. Rxd5 {[%emt 0:01:38]} Rxd5 {[%emt 0:03:29]} 24. Kc2 {[%emt 0:02:44]} Kb7 {[%emt 0:00:25]} 25. Rf3 {[%emt 0:02:03] An interesting draw.  Weighted Error Value: White=0.03 (flawless) /Black=0.04 (flawless)} 1/2-1/2